fUSD/lending_fUSD_20250629
["ID","MTS","AMOUNT","RATE_DAILY","PERIOD"]
[368558781,1751206275354,-499.57570899,0.00024931,3]
[368558782,1751206275363,-490.0,0.00024931,3]
[368558783,1751206275373,-490.0,0.00024931,3]
[368558784,1751206275384,-490.0,0.00024931,3]
[368558785,1751206275395,-492.96,0.00024931,3]
[368558786,1751206275405,-490.0,0.00024931,3]
[368558787,1751206275414,-418.49640163,0.00024931,3]
[368558788,1751206275424,-490.0,0.00024931,3]
[368558789,1751206275433,-490.0,0.00024931,3]
[368558790,1751206275443,-220.0,0.00024931,3]
[368558791,1751206275451,-490.0,0.00024931,3]
[368558792,1751206275461,-490.0,0.00024931,3]
[368558793,1751206275471,-490.0,0.00024931,3]
[368558794,1751206275481,-490.0,0.00024931,3]
[368558795,1751206275491,-490.0,0.00024931,3]
[368558796,1751206275500,-490.0,0.00024931,3]
[368558797,1751206275510,-490.0,0.00024931,3]
[368558798,1751206275520,-490.0,0.00024931,3]
[368558799,1751206275529,-567.89,0.00024931,3]
[368558800,1751206275538,-490.0,0.00024931,3]
[368558801,1751206275548,-490.0,0.00024931,3]
[368558802,1751206275557,-490.0,0.00024931,3]
[368558803,1751206275567,-490.0,0.00024931,3]
[368558804,1751206275576,-504.45509032,0.00024931,3]
[368558805,1751206275585,-490.0,0.00024931,3]
[368558806,1751206275595,-633.3092198,0.00024931,3]
[368558807,1751206275605,-490.0,0.00024931,3]
[368558808,1751206275615,-490.0,0.00024931,3]
[368558809,1751206275624,-1058.28,0.00024931,3]
[368558810,1751206275634,-151.0,0.00024931,7]
[368558811,1751206275644,-210.0,0.00024931,3]
[368558812,1751206275653,-490.0,0.00024931,3]
[368558813,1751206275663,-374.82608393,0.00024931,3]
[368558814,1751206275672,-490.0,0.00024931,3]
[368558815,1751206275682,-490.0,0.00024931,3]
[368558816,1751206275692,-478.63662804,0.00024931,3]
[368558817,1751206275701,-490.0,0.00024931,3]
[368558818,1751206275711,-490.0,0.00024931,3]
[368558819,1751206275720,-171.43673575,0.00024931,3]
[368558820,1751206275730,-337.56824352,0.00024931,3]
[368558821,1751206275740,-490.0,0.00024931,3]
[368558822,1751206275750,-506.70491406,0.00024931,3]
[368558823,1751206275759,-490.0,0.00024931,3]
[368558824,1751206275821,-490.0,0.00024931,3]
[368558825,1751206275830,-490.0,0.00024931,3]
[368558826,1751206275840,-490.0,0.00024931,3]
[368558827,1751206275849,-490.0,0.00024931,3]
[368558828,1751206275858,-490.0,0.00024931,3]
[368558829,1751206275867,-707.27,0.00024931,3]
[368558830,1751206275876,-490.0,0.00024931,3]
[368558831,1751206275885,-490.0,0.00024931,3]
[368558832,1751206275895,-490.0,0.00024931,3]
[368558833,1751206275904,-490.0,0.00024931,3]
[368558834,1751206275913,-490.0,0.00024931,3]
[368558835,1751206275923,-702.72,0.00024931,3]
[368558836,1751206275932,-1150.43,0.00024931,3]
[368558837,1751206275941,-498.25,0.00024931,3]
[368558838,1751206275950,-490.0,0.00024931,3]
[368558839,1751206275959,-490.0,0.00024931,3]
[368558840,1751206275968,-490.0,0.00024931,3]
[368558841,1751206275978,-490.0,0.00024931,3]
[368558842,1751206275987,-490.0,0.00024931,3]
[368558843,1751206275996,-490.0,0.00024931,3]
[368558844,1751206276005,-1000.0,0.00024931,3]
[368558845,1751206276015,-490.0,0.00024931,3]
[368558846,1751206276024,-490.0,0.00024931,3]
[368558847,1751206276033,-490.0,0.00024931,3]
[368558848,1751206276043,-490.0,0.00024931,3]
[368558849,1751206276053,-955.39,0.00024931,3]
[368558850,1751206276061,-490.0,0.00024931,3]
[368558851,1751206276071,-273.91736845,0.00024931,3]
[368558852,1751206276081,-490.0,0.00024931,3]
[368558853,1751206276090,-995.94,0.00024931,3]
[368558854,1751206276099,-240.99165791,0.00024931,3]
[368558855,1751206276108,-496.35,0.00024931,3]
[368558856,1751206276117,-490.0,0.00024931,3]
[368558857,1751206276127,-490.0,0.00024931,3]
[368558858,1751206276136,-490.0,0.00024931,3]
[368558859,1751206276146,-490.0,0.00024931,3]
[368558860,1751206276155,-490.0,0.00024931,3]
[368558861,1751206276164,-490.0,0.00024931,3]
[368558862,1751206276174,-587.43,0.00024931,3]
[368558863,1751206276183,-490.0,0.00024931,3]
[368558864,1751206276191,-449.52334321,0.00024931,3]
[368558865,1751206276200,-634.96,0.00024931,3]
[368558866,1751206276209,-575.11,0.00024931,3]
[368558867,1751206276219,-1124.57,0.00024931,3]
[368558868,1751206276227,-490.0,0.00024931,3]
[368558869,1751206276236,-490.0,0.00024931,3]
[368558870,1751206276246,-490.0,0.00024931,3]
[368558871,1751206276255,-490.0,0.00024931,3]
[368558872,1751206276264,-490.0,0.00024931,3]
[368558873,1751206276273,-156.077597,0.00024931,3]
[368558874,1751206276282,-490.0,0.00024931,3]
[368558875,1751206276291,-490.0,0.00024931,3]
[368558876,1751206276303,-490.0,0.00024931,3]
[368558877,1751206276315,-490.0,0.00024931,3]
[368558878,1751206276323,-490.0,0.00024931,3]
[368558879,1751206276332,-490.0,0.00024931,3]
[368558880,1751206276342,-490.0,0.00024931,3]
[368558881,1751206276351,-490.0,0.00024931,3]
[368558882,1751206276360,-490.0,0.00024931,3]
[368558883,1751206276370,-452.95,0.00024931,3]
[368558884,1751206276380,-490.0,0.00024931,3]
[368558885,1751206276390,-732.4,0.00024931,3]
[368558886,1751206276399,-490.0,0.00024931,3]
[368558887,1751206276408,-490.0,0.00024931,3]
[368558888,1751206276417,-490.0,0.00024931,3]
[368558889,1751206276427,-611.47,0.00024931,3]
[368558890,1751206276436,-797.24,0.00024931,3]
[368558891,1751206276445,-490.0,0.00024931,3]
[368558892,1751206276454,-490.0,0.00024931,3]
[368558893,1751206276463,-490.0,0.00024931,3]
[368558894,1751206276473,-1766.99,0.00024931,3]
[368558895,1751206276483,-490.0,0.00024931,3]
[368558896,1751206276492,-490.48,0.00024931,3]
[368558897,1751206276502,-490.0,0.00024931,3]
[368558898,1751206276511,-490.0,0.00024931,3]
[368558899,1751206276520,-620.59,0.00024931,3]
[368558900,1751206276530,-490.0,0.00024931,3]
[368558901,1751206276539,-490.0,0.00024931,3]
[368558902,1751206276549,-534.85,0.00024931,3]
[368558903,1751206276558,-490.0,0.00024931,3]
[368558904,1751206276568,-490.0,0.00024931,3]
[368558905,1751206276577,-490.0,0.00024931,3]
[368558906,1751206276587,-550.27,0.00024931,3]
[368558907,1751206276596,-490.0,0.00024931,3]
[368558908,1751206276605,-490.0,0.00024931,3]
[368558909,1751206276615,-1108.02,0.00024931,3]
[368558910,1751206276624,-490.0,0.00024931,3]
[368558911,1751206276633,-490.0,0.00024931,3]
[368558912,1751206276643,-490.0,0.00024931,3]
[368558913,1751206276652,-490.0,0.00024931,3]
[368558914,1751206276661,-490.0,0.00024931,3]
[368558915,1751206276671,-490.0,0.00024931,3]
[368558916,1751206276680,-1008.72,0.00024931,3]
[368558917,1751206276689,-1103.27,0.00024931,3]
[368558918,1751206276698,-490.0,0.00024931,3]
[368558919,1751206276708,-353.67938822,0.00024931,3]
[368558920,1751206276717,-490.0,0.00024931,3]
[368558921,1751206276726,-490.0,0.00024931,3]
[368558922,1751206276736,-490.0,0.00024931,3]
[368558923,1751206276745,-490.0,0.00024931,3]
[368558924,1751206276754,-490.0,0.00024931,3]
[368558925,1751206276764,-575.41,0.00024931,3]
[368558926,1751206276773,-490.0,0.00024931,3]
[368558927,1751206276783,-664.24,0.00024931,3]
[368558928,1751206276792,-490.0,0.00024931,3]
[368558929,1751206276801,-213.47612455,0.00024931,3]
[368558930,1751206276811,-490.0,0.00024931,3]
[368558931,1751206276820,-1176.1,0.00024931,3]
[368558932,1751206276829,-527.99,0.00024931,3]
[368558933,1751206276839,-490.0,0.00024931,3]
[368558934,1751206276848,-490.0,0.00024931,3]
[368558935,1751206276857,-490.0,0.00024931,3]
[368558936,1751206276866,-799.96,0.00024931,3]
[368558937,1751206276875,-490.0,0.00024931,3]
[368558938,1751206276884,-490.0,0.00024931,3]
[368558939,1751206276895,-490.0,0.00024931,3]
[368558940,1751206276904,-490.0,0.00024931,3]
[368558941,1751206276914,-490.0,0.00024931,3]
[368558942,1751206276923,-490.0,0.00024931,3]
[368558943,1751206276933,-490.0,0.00024931,3]
[368558944,1751206276943,-756.56,0.00024931,3]
[368558945,1751206276952,-752.28,0.00024931,3]
[368558946,1751206276962,-490.0,0.00024931,3]
[368558947,1751206276971,-490.0,0.00024931,3]
[368558948,1751206276980,-490.0,0.00024931,3]
[368558949,1751206276990,-490.0,0.00024931,3]
[368558950,1751206276999,-490.0,0.00024931,3]
[368558951,1751206277008,-770.05,0.00024931,3]
[368558952,1751206277018,-490.0,0.00024931,3]
[368558953,1751206277027,-490.0,0.00024931,3]
[368558954,1751206277036,-490.0,0.00024931,3]
[368558955,1751206277046,-151.0,0.00024931,7]
[368558956,1751206277055,-151.0,0.00024931,7]
[368558957,1751206277065,-490.0,0.00024931,3]
[368558958,1751206277074,-151.0,0.00024931,7]
[368558959,1751206277084,-151.0,0.00024931,7]
[368558960,1751206277094,-195.320778,0.00024931,7]
[368558961,1751206277104,-490.0,0.00024931,3]
[368558962,1751206277115,-490.0,0.00024931,3]
[368558963,1751206277125,-295.05586054,0.00024931,3]
[368558964,1751206277136,-496.82591929,0.00024931,3]
[368558965,1751206277146,-738.59,0.00024931,3]
[368558966,1751206277156,-490.0,0.00024931,3]
[368558967,1751206277165,-653.66,0.00024931,3]
[368558968,1751206277175,-490.0,0.00024931,3]
[368558969,1751206277184,-490.0,0.00024931,3]
[368558970,1751206277194,-490.0,0.00024931,3]
[368558971,1751206277203,-490.0,0.00024931,3]
[368558972,1751206277212,-490.0,0.00024931,3]
[368558973,1751206277222,-502.69,0.00024931,3]
[368558974,1751206277231,-522.94,0.00024931,3]
[368558975,1751206277242,-2040.75,0.00024931,3]
[368558976,1751206277252,-490.0,0.00024931,3]
[368558977,1751206277261,-152.95630553,0.00024931,3]
[368558978,1751206277275,-716.83,0.00024931,3]
[368558979,1751206277284,-490.0,0.00024931,3]
[368558980,1751206277296,-1056.15,0.00024931,3]
[368558981,1751206277306,-1500.0,0.00024931,3]
[368558982,1751206277318,-1017.75,0.00024931,3]
[368558983,1751206277333,-490.0,0.00024931,3]
[368558984,1751206277342,-794.4,0.00024931,3]
[368558985,1751206277351,-490.0,0.00024931,3]
[368558986,1751206277361,-492.366916,0.00024931,3]
[368558987,1751206277371,-490.0,0.00024931,3]
[368558988,1751206277380,-490.0,0.00024931,3]
[368558989,1751206277390,-490.0,0.00024931,3]
[368558990,1751206277400,-490.0,0.00024931,3]
[368558991,1751206277409,-847.49,0.00024931,3]
[368558992,1751206277418,-557.43,0.00024931,3]
[368558993,1751206277427,-490.0,0.00024931,3]
[368558994,1751206277436,-490.0,0.00024931,3]
[368558995,1751206277445,-490.0,0.00024931,3]
[368558996,1751206277455,-800.71,0.00024931,3]
[368558997,1751206277463,-490.0,0.00024931,3]
[368558998,1751206277473,-490.0,0.00024931,3]
[368558999,1751206277482,-673.15,0.00024931,3]
[368559000,1751206277491,-1613.06,0.00024931,3]
[368559001,1751206277500,-490.0,0.00024931,3]
[368559002,1751206277511,-490.0,0.00024931,3]
[368559003,1751206277520,-490.0,0.00024931,3]
[368559004,1751206277530,-490.0,0.00024931,3]
[368559005,1751206277540,-490.0,0.00024931,3]
[368559006,1751206277550,-490.0,0.00024931,3]
[368559007,1751206277560,-430.63839476,0.00024931,3]
[368559008,1751206277569,-490.0,0.00024931,3]
[368559009,1751206277579,-1085.43,0.00024931,3]
[368559010,1751206277589,-652.17,0.00024931,3]
[368559011,1751206277600,-1402.06,0.00024931,3]
[368559012,1751206277610,-490.0,0.00024931,3]
[368559013,1751206277619,-2412.29,0.00024931,3]
[368559014,1751206277630,-2098.59,0.00024931,3]
[368559015,1751206277639,-490.0,0.00024931,3]
[368559016,1751206277648,-490.0,0.00024931,3]
[368559017,1751206277657,-490.0,0.00024931,3]
[368559018,1751206277666,-490.0,0.00024931,3]
[368559019,1751206277675,-490.0,0.00024931,3]
[368559020,1751206277684,-1863.11,0.00024931,3]
[368559021,1751206277694,-490.0,0.00024931,3]
[368559022,1751206277703,-490.0,0.00024931,3]
[368559023,1751206277713,-490.0,0.00024931,3]
[368559024,1751206277722,-490.0,0.00024931,3]
[368559025,1751206277732,-490.0,0.00024931,3]
[368559026,1751206277742,-490.0,0.00024931,3]
[368559027,1751206277751,-1857.3,0.00024931,3]
[368559028,1751206277760,-490.0,0.00024931,3]
[368559029,1751206277770,-1171.26,0.00024931,3]
[368559030,1751206277779,-490.0,0.00024931,3]
[368559031,1751206277790,-496.66,0.00024931,3]
[368559032,1751206277799,-490.0,0.00024931,3]
[368559033,1751206277808,-151.0,0.00024931,7]
[368559034,1751206277818,-151.0,0.00024931,7]
[368559035,1751206277828,-151.0,0.00024931,7]
[368559036,1751206277837,-151.0,0.00024931,7]
[368559037,1751206277846,-490.0,0.00024931,3]
[368559038,1751206277855,-490.0,0.00024931,3]
[368559039,1751206277864,-151.0,0.00024931,7]
[368559040,1751206277873,-151.0,0.00024931,7]
[368559041,1751206277883,-585.52,0.00024931,3]
[368559042,1751206277893,-151.0,0.00024931,7]
[368559043,1751206277903,-151.0,0.00024931,7]
[368559044,1751206277912,-490.0,0.00024931,3]
[368559045,1751206277922,-598.78,0.00024931,3]
[368559046,1751206277932,-490.0,0.00024931,3]
[368559047,1751206277942,-974.99,0.00024931,3]
[368559048,1751206277952,-2843.69,0.00024931,3]
[368559049,1751206277961,-548.88,0.00024931,3]
[368559050,1751206277971,-577.75,0.00024931,3]
[368559051,1751206277980,-490.0,0.00024931,3]
[368559052,1751206277989,-490.0,0.00024931,3]
[368559053,1751206277998,-541.94,0.00024931,3]
[368559054,1751206278008,-1061.98,0.00024931,3]
[368559055,1751206278017,-490.0,0.00024931,3]
[368559056,1751206278027,-1918.87,0.00024931,3]
[368559057,1751206278036,-793.19,0.00024931,3]
[368559058,1751206278045,-1437.11,0.00024931,3]
[368559059,1751206278055,-652.29,0.00024931,3]
[368559060,1751206278064,-505.18,0.00024931,3]
[368559061,1751206278074,-2371.51,0.00024931,3]
[368559062,1751206278083,-490.0,0.00024931,3]
[368559063,1751206278092,-190.438107,0.00024931,7]
[368559064,1751206278102,-1067.26,0.00024931,3]
[368559065,1751206278112,-490.0,0.00024931,3]
[368559066,1751206278122,-490.0,0.00024931,3]
[368559067,1751206278131,-490.0,0.00024931,3]
[368559068,1751206278141,-490.0,0.00024931,3]
[368559069,1751206278151,-681.69,0.00024931,3]
[368559070,1751206278160,-1282.5,0.00024931,3]
[368559071,1751206278170,-1458.01,0.00024931,3]
[368559072,1751206278180,-490.0,0.00024931,3]
[368559073,1751206278189,-716.57,0.00024931,3]
[368559074,1751206278199,-490.0,0.00024931,3]
[368559075,1751206278208,-490.0,0.00024931,3]
[368559076,1751206278218,-490.0,0.00024931,3]
[368559077,1751206278227,-490.0,0.00024931,3]
[368559078,1751206278237,-490.0,0.00024931,3]
[368559079,1751206278247,-490.0,0.00024931,3]
[368559080,1751206278257,-864.6,0.00024931,3]
[368559081,1751206278266,-490.0,0.00024931,3]
[368559082,1751206278276,-2133.7,0.00024931,3]
[368559083,1751206278285,-863.31,0.00024931,3]
[368559084,1751206278294,-490.0,0.00024931,3]
[368559085,1751206278304,-490.0,0.00024931,3]
[368559086,1751206278317,-490.0,0.00024931,3]
[368559087,1751206278327,-490.0,0.00024931,3]
[368559088,1751206278336,-561.21,0.00024931,3]
[368559089,1751206278345,-2064.02,0.00024931,3]
[368559090,1751206278356,-624.46,0.00024931,3]
[368559091,1751206278366,-776.84,0.00024931,3]
[368559092,1751206278375,-490.0,0.00024931,3]
[368559093,1751206278385,-811.46,0.00024931,3]
[368559094,1751206278395,-1706.17,0.00024931,3]
[368559095,1751206278404,-784.95,0.00024931,3]
[368559096,1751206278413,-490.0,0.00024931,3]
[368559097,1751206278423,-385.39800892,0.00024931,3]
[368559098,1751206278433,-490.0,0.00024931,3]
[368559099,1751206278443,-3666.67,0.00024931,3]
[368559100,1751206278451,-490.0,0.00024931,3]
[368559101,1751206278461,-490.0,0.00024931,3]
[368559102,1751206278470,-681.36,0.00024931,3]
[368559103,1751206278480,-490.0,0.00024931,3]
[368559104,1751206278489,-490.0,0.00024931,3]
[368559105,1751206278498,-490.0,0.00024931,3]
[368559106,1751206278508,-659.61,0.00024931,3]
[368559107,1751206278517,-490.0,0.00024931,3]
[368559108,1751206278526,-490.0,0.00024931,3]
[368559109,1751206278536,-841.39,0.00024931,3]
[368559110,1751206278545,-490.0,0.00024931,3]
[368559111,1751206278554,-978.49,0.00024931,3]
[368559112,1751206278564,-490.0,0.00024931,3]
[368559113,1751206278573,-490.0,0.00024931,3]
[368559114,1751206278582,-840.94,0.00024931,3]
[368559115,1751206278592,-490.0,0.00024931,3]
[368559116,1751206278602,-774.53,0.00024931,3]
[368559117,1751206278612,-699.55,0.00024931,3]
[368559118,1751206278621,-517.16,0.00024931,3]
[368559119,1751206278630,-1167.53,0.00024931,3]
[368559120,1751206278644,-490.0,0.00024931,3]
[368559121,1751206278654,-490.0,0.00024931,3]
[368559122,1751206278664,-490.0,0.00024931,3]
[368559123,1751206278673,-1367.59,0.00024931,3]
[368559124,1751206278682,-984.57,0.00024931,3]
[368559125,1751206278692,-490.0,0.00024931,3]
[368559126,1751206278701,-1628.21,0.00024931,3]
[368559127,1751206278710,-151.0,0.00024931,7]
[368559128,1751206278720,-670.36,0.00024931,3]
[368559129,1751206278729,-151.0,0.00024931,7]
[368559130,1751206278739,-252.80706333,0.00024931,3]
[368559131,1751206278748,-1817.56,0.00024931,3]
[368559132,1751206278758,-778.46,0.00024931,3]
[368559133,1751206278767,-490.0,0.00024931,3]
[368559134,1751206278776,-490.0,0.00024931,3]
[368559135,1751206278785,-490.0,0.00024931,3]
[368559136,1751206278795,-490.0,0.00024931,3]
[368559137,1751206278805,-490.0,0.00024931,3]
[368559138,1751206278814,-490.0,0.00024931,3]
[368559139,1751206278823,-490.0,0.00024931,3]
[368559140,1751206278833,-1019.98,0.00024931,3]
[368559141,1751206278843,-996.48,0.00024931,3]
[368559142,1751206278852,-777.37,0.00024931,3]
[368559143,1751206278861,-2292.52,0.00024931,3]
[368559144,1751206278870,-663.82,0.00024931,3]
[368559145,1751206278880,-490.0,0.00024931,3]
[368559146,1751206278889,-490.0,0.00024931,3]
[368559147,1751206278898,-490.0,0.00024931,3]
[368559148,1751206278907,-490.0,0.00024931,3]
[368559149,1751206278916,-490.0,0.00024931,3]
[368559150,1751206278929,-685.16,0.00024931,3]
[368559151,1751206278938,-1295.88,0.00024931,3]
[368559152,1751206278948,-517.84,0.00024931,3]
[368559153,1751206278957,-575.59,0.00024931,3]
[368559154,1751206278967,-860.35,0.00024931,3]
[368559155,1751206278976,-490.0,0.00024931,3]
[368559156,1751206278985,-2164.34,0.00024931,3]
[368559157,1751206278995,-2198.19,0.00024931,3]
[368559158,1751206279004,-2174.13,0.00024931,3]
[368559159,1751206279012,-490.0,0.00024931,3]
[368559160,1751206279022,-490.0,0.00024931,3]
[368559161,1751206279031,-490.0,0.00024931,3]
[368559162,1751206279040,-2127.27,0.00024931,3]
[368559163,1751206279050,-490.0,0.00024931,3]
[368559164,1751206279059,-2858.31,0.00024931,3]
[368559165,1751206279068,-1767.85,0.00024931,3]
[368559166,1751206279078,-490.0,0.00024931,3]
[368559167,1751206279087,-494.75788022,0.00024931,3]
[368559168,1751206279096,-490.0,0.00024931,3]
[368559169,1751206279106,-490.0,0.00024931,3]
[368559170,1751206279115,-595.12,0.00024931,3]
[368559171,1751206279124,-1180.31,0.00024931,3]
[368559172,1751206279133,-490.0,0.00024931,3]
[368559173,1751206279143,-3042.15,0.00024931,3]
[368559174,1751206279152,-490.0,0.00024931,3]
[368559175,1751206279161,-1951.76,0.00024931,3]
[368559176,1751206279171,-609.41,0.00024931,3]
[368559177,1751206279181,-490.0,0.00024931,3]
[368559178,1751206279191,-1110.91,0.00024931,3]
[368559179,1751206279200,-490.0,0.00024931,3]
[368559180,1751206279213,-1134.55,0.00024931,3]
[368559181,1751206279226,-490.0,0.00024931,3]
[368559182,1751206279237,-490.0,0.00024931,3]
[368559183,1751206279246,-497.03,0.00024931,3]
[368559184,1751206279256,-490.0,0.00024931,3]
[368559185,1751206279266,-490.0,0.00024931,3]
[368559186,1751206279275,-490.0,0.00024931,3]
[368559187,1751206279284,-490.0,0.00024931,3]
[368559188,1751206279294,-2094.89,0.00024931,3]
[368559189,1751206279304,-490.0,0.00024931,3]
[368559190,1751206279316,-938.04,0.00024931,3]
[368559191,1751206279326,-490.0,0.00024931,3]
[368559192,1751206279335,-490.0,0.00024931,3]
[368559193,1751206279345,-490.0,0.00024931,3]
[368559194,1751206279355,-812.64,0.00024931,3]
[368559195,1751206279364,-490.0,0.00024931,3]
[368559196,1751206279373,-882.97,0.00024931,3]
[368559197,1751206279384,-490.0,0.00024931,3]
[368559198,1751206279394,-490.0,0.00024931,3]
[368559199,1751206279404,-1165.45,0.00024931,3]
[368559200,1751206279413,-1000.3,0.00024931,3]
[368559201,1751206279423,-1027.58,0.00024931,3]
[368559202,1751206279433,-600.04,0.00024931,3]
[368559203,1751206279442,-490.0,0.00024931,3]
[368559204,1751206279451,-490.0,0.00024931,3]
[368559205,1751206279461,-490.0,0.00024931,3]
[368559206,1751206279470,-490.0,0.00024931,3]
[368559207,1751206279479,-490.0,0.00024931,3]
[368559208,1751206279488,-890.98,0.00024931,3]
[368559209,1751206279498,-490.0,0.00024931,3]
[368559210,1751206279507,-995.94,0.00024931,3]
[368559211,1751206279516,-490.0,0.00024931,3]
[368559212,1751206279525,-490.0,0.00024931,3]
[368559213,1751206279534,-490.0,0.00024931,3]
[368559214,1751206279544,-2535.53,0.00024931,3]
[368559215,1751206279553,-490.0,0.00024931,3]
[368559216,1751206279562,-490.0,0.00024931,3]
[368559217,1751206279571,-1343.67,0.00024931,3]
[368559218,1751206279581,-2338.68,0.00024931,3]
[368559219,1751206279591,-519.74,0.00024931,3]
[368559220,1751206279600,-1942.89,0.00024931,3]
[368559221,1751206279609,-1829.51,0.00024931,3]
[368559222,1751206279620,-523.09,0.00024931,3]
[368559223,1751206279629,-421.94912792,0.00024931,3]
[368559224,1751206279639,-548.48,0.00024931,3]
[368559225,1751206279649,-490.0,0.00024931,3]
[368559226,1751206279659,-151.0,0.00024931,7]
[368559227,1751206279668,-2752.71,0.00024931,3]
[368559228,1751206279678,-151.0,0.00024931,7]
[368559229,1751206279687,-490.0,0.00024931,3]
[368559230,1751206279697,-605.31,0.00024931,3]
[368559231,1751206279706,-490.0,0.00024931,3]
[368559232,1751206279716,-2782.17,0.00024931,3]
[368559233,1751206279725,-490.0,0.00024931,3]
[368559234,1751206279734,-490.0,0.00024931,3]
[368559235,1751206279744,-1070.29,0.00024931,3]
[368559236,1751206279753,-490.0,0.00024931,3]
[368559237,1751206279762,-1570.56,0.00024931,3]
[368559238,1751206279771,-490.0,0.00024931,3]
[368559239,1751206279781,-490.0,0.00024931,3]
[368559240,1751206279790,-1818.19,0.00024931,3]
[368559241,1751206279799,-531.64,0.00024931,3]
[368559242,1751206279808,-635.95,0.00024931,3]
[368559243,1751206279818,-490.0,0.00024931,3]
[368559244,1751206279827,-490.0,0.00024931,3]
[368559245,1751206279836,-1058.85,0.00024931,3]
[368559246,1751206279950,-1279.5,0.00024931,3]
[368559247,1751206279960,-1352.44,0.00024931,3]
[368559248,1751206279969,-151.0,0.00024931,7]
[368559249,1751206279979,-579.4,0.00024931,3]
[368559250,1751206279989,-151.0,0.00024931,7]
[368559251,1751206279999,-151.0,0.00024931,7]
[368559252,1751206280010,-490.0,0.00024931,3]
[368559253,1751206280019,-1030.59,0.00024931,3]
[368559254,1751206280030,-1340.02,0.00024931,3]
[368559255,1751206280039,-616.11,0.00024931,3]
[368559256,1751206280050,-851.39,0.00024931,3]
[368559257,1751206280059,-490.0,0.00024931,3]
[368559258,1751206280069,-490.0,0.00024931,2]
[368559259,1751206280079,-1685.61,0.00024931,3]
[368559260,1751206280089,-490.0,0.00024931,3]
[368559261,1751206280098,-490.0,0.00024931,3]
[368559262,1751206280107,-2556.45,0.00024931,3]
[368559263,1751206280116,-490.0,0.00024931,3]
[368559264,1751206280127,-1064.21,0.00024931,3]
[368559265,1751206280137,-2994.03,0.00024931,3]
[368559266,1751206280147,-687.55,0.00024931,3]
[368559267,1751206280157,-1585.17,0.00024931,3]
[368559268,1751206280166,-957.78,0.00024931,3]
[368559269,1751206280176,-490.0,0.00024931,3]
[368559270,1751206280186,-490.0,0.00024931,3]
[368559271,1751206280196,-536.79,0.00024931,3]
[368559272,1751206280205,-490.0,0.00024931,3]
[368559273,1751206280215,-1099.2,0.00024931,3]
[368559274,1751206280227,-1892.89,0.00024931,3]
[368559275,1751206280236,-493.56856071,0.00024931,3]
[368559276,1751206280246,-563.36433521,0.00024931,3]
[368559277,1751206280255,-592.45,0.00024931,3]
[368559278,1751206280267,-490.0,0.00024931,3]
[368559279,1751206280276,-490.0,0.00024931,3]
[368559280,1751206280286,-490.0,0.00024931,3]